Cogmind - Beta 16 @@@ ROGUE MODE // 2025.11.30 @ 21:44:33 Player: Ayera Result: Destroyed by Y-45 Defender with Beam Rifle Performance ------------- Evolutions (2) 1000 Regions Visited (3) 600 Robots Destroyed (26) 130 Value Destroyed (830) 830 Prototype IDs (0) 0 Alien Tech Used (0) 0 Bonus (0) 0 TOTAL SCORE: 2560 Bonus ------- None Cogmind --------- Core Integrity 0/550 Matter 262/300 Energy 98/100 System Corruption 0% Temperature Cool (10) Movement Treading (170) Location -8/Materials Parts ------- > --- POWER (2) -------- (None) > --- PROPULSION (3) --- Armored Treads > --- UTILITY (4) ------ Small Storage Unit Reflective Plating Reflective Plating > --- WEAPON (2) ------- (None) > --- INVENTORY (8) ---- Cesium-ion Thruster Autogun Peak State ------------ > --- POWER ------------ Nuclear Core Light Nuclear Core > --- PROPULSION ------- Improved Hover Unit Improved Hover Unit Airjet > --- UTILITY ---------- Small Storage Unit Advanced Visual Processing Unit Particle Charger Shield Generator > --- WEAPON ----------- Particle Gun Autogun > --- INVENTORY -------- Nuclear Core Cesium-ion Thruster Light Assault Rifle Minigun [Rating: 27] Favorites ----------- Power Light Ion Engine Engine Light Ion Engine Power Core Nuclear Core Propulsion Airjet Treads Light Treads Leg Aluminum Leg Wheel Armored Wheel Hover Unit Airjet Flight Unit Cesium-ion Thruster Utility Small Storage Unit Device Particle Charger Storage Small Storage Unit Processor Advanced Visual Processing Unit Protection Reflective Plating Weapon Medium Laser Energy Gun Medium Laser Ballistic Gun Minigun Launcher Shock Bomb Launcher Special Weapon Welding Torch Build | -11 -10 -9 -8 ------- Run | Yrd Mat Mat Mat Slots Evolved 4 | . . 2 2 Power 1 | . . . 1 Propulsion 1 | . . 1 . Utility 2 | . . 1 1 Weapon . | . . . . Parts Attached 44 | 6 8 3 27 Power 9 | 1 3 . 5 Engine 6 | 1 3 . 2 Core 3 | . . . 3 Reactor . | . . . . Propulsion 11 | 2 2 1 6 Treads 3 | . 2 . 1 Leg 2 | 2 . . . Wheel 2 | . . 1 1 Hover 3 | . . . 3 Flight 1 | . . . 1 Utility 12 | 1 . 2 9 Device 6 | . . 2 4 Storage 2 | 1 . . 1 Processor 2 | . . . 2 Hackware . | . . . . Protection 2 | . . . 2 Artifact . | . . . . Weapon 12 | 2 3 . 7 Energy Gun 5 | 2 1 . 2 Energy Cannon . | . . . . Ballistic Gun 3 | . . . 3 Ballistic Cannon . | . . . . Launcher 3 | . 1 . 2 Special Weapon 1 | . 1 . . Impact Weapon . | . . . . Slashing Weapon . | . . . . Piercing Weapon . | . . . . Special Melee Weapon . | . . . . Unidentified Prototypes . | . . . . Parts Lost 23 | . 7 1 15 Power 8 | . 3 1 4 Propulsion 5 | . 2 . 3 Utility 5 | . . . 5 Weapon 5 | . 2 . 3 Highest Loss Streak 9 | . 3 1 9 To Critical Strikes . | . . . . Average Backups 1 | . . . 2 Power . | . . . . Propulsion . | . . . . Utility . | . . . . Weapon . | . . . 1 Tool/Special . | . . . . Unused Backups . | . . . . Power . | . . . . Propulsion . | . . . . Utility . | . . . . Weapon . | . . . . Tool/Special . | . . . . Average Slot Usage (%) 51 | . 55 12 56 Engine 6 | . 9 8 4 Core 2 | . . . 4 Treads 4 | . 11 . 1 Leg 3 | . 10 . . Hover 5 | . . . 9 Device 4 | . . 2 6 Storage 5 | . 6 . 6 Processor 4 | . . . 7 Energy Gun 6 | . 11 . 4 Ballistic Gun 3 | . . . 6 Launcher 3 | . 5 . 3 Peak Build Rating 27 | 6 6 6 27 Average Rating 9 | 3 3 1 15 On Entrance 1 | . 6 1 . Avg Prop Armor Cover (%) . | . . . . Naked Turns 48 | . 23 17 8 Heaviest Build 31 | 11 14 10 31 Greatest Support 40 | 20 40 16 22 Greatest Overweight (x) 4 | . 3 3 4 Average Overweight (x) . | . . . . Largest Inventory Capacity 8 | 8 8 5 8 Average Capacity 6 | 6 6 5 7 Most Carried 5 | 4 2 1 5 Average Carried 1 | . . . 2 Final Capacity 8 | 8 5 5 8 Final Carried 2 | . . . 2 Class Distribution -------------------- 100% | Mutant Dominant Class ---------------- Mutant | -10/Materials Mutant | -9/Materials Mutant | -8/Materials Resources | -11 -10 -9 -8 ----------- Run | Yrd Mat Mat Mat Matter Collected 826 | 139 126 . 561 Remotely . | . . . . Salvage Created 821 | . 382 . 439 Parts 57 | . 31 . 26 Haulers Intercepted . | . . . . Recyclers Shooed 3 | . 2 . 1 Parts Field Recycled . | . . . . Retrieved Matter . | . . . . Parts Self-Destructed . | . . . . Prevented . | . . . . Parts Restored . | . . . . Kills | -11 -10 -9 -8 ------- Run | Yrd Mat Mat Mat Combat Hostiles Destroyed 22 | . 10 . 12 Melee 2 | . . . 2 Guns 13 | . 3 . 10 AOE 5 | . 5 . . Classes Destroyed 7 | . 5 . 2 Worker 1 | . 1 . . Builder 1 | . 1 . . Tunneler 1 | . 1 . . Watcher 1 | . 1 . . Swarmer 4 | . . . 4 Grunt 16 | . 10 . 6 Sentry 2 | . . . 2 Best Kill Streak 6 | . 6 . 3 Combat Bots Only 3 | . 3 . 3 Max Kills in Single Turn 3 | . 3 . 1 Gunslinging . | . . . . Exploded 2 | . 2 . . Melee 1 | . . . 1 Uniques/NPCs Destroyed . | . . . . Combat | -11 -10 -9 -8 -------- Run | Yrd Mat Mat Mat Hostile Shots Fired 350 | . 89 63 198 Missed 105 | . 27 22 56 Hits 245 | . 62 41 142 Projectile 245 | . 62 41 142 Critical Strikes 12 | . 5 1 6 Damage Taken 3289 | . 871 406 2012 Core 1058 | . 170 330 558 Absorbed by Shields 84 | . . 16 68 Ignored by Resistances 40 | . . . 40 Core Remaining (%) 49 | 100 32 17 . Volleys Fired 115 | . 42 . 73 Largest 2 | . 2 . 2 Hottest 101 | . 100 . 101 Shots Fired 162 | . 68 . 94 Gun 142 | . 54 . 88 Cannon . | . . . . Launcher 18 | . 12 . 6 Special 2 | . 2 . . Kinetic 54 | . . . 54 Thermal 83 | . 56 . 27 Explosive 12 | . 12 . . Electromagnetic 13 | . . . 13 Robot Hit Streak 8 | . 7 . 8 Robot Miss Streak 6 | . 4 . 6 Penetration Max . | . . . . Secondary Targets 2 | . 1 . 1 Max Gunslinging Chain 1 | . 1 . 1 Shots Hit Robots 93 | . 41 . 52 Core Hits 55 | . 26 1 28 Critical Kills . | . . . . Critical Parts Destroyed . | . . . . Critical Strikes 6 | . 4 . 2 Burn 6 | . 4 . 2 Melee Attacks . | . . . . Impact . | . . . . Slashing . | . . . . Piercing . | . . . . Sneak Attacks . | . . . . Combat Hostiles . | . . . . Follow-up Attacks . | . . . . Damage Inflicted 1980 | . 1019 11 950 Guns 1235 | . 439 . 796 Cannons . | . . . . Explosions 697 | . 576 . 121 Melee . | . . . . Ramming 45 | . 1 11 33 Kinetic 446 | . . . 446 Thermal 690 | . 442 . 248 Explosive 576 | . 576 . . Electromagnetic 223 | . . . 223 Impact . | . . . . Slashing . | . . . . Piercing . | . . . . Highest Corruption 2 | . . 2 . Average Corruption 2 | . . 2 . Corruption Purged . | . . . . Corruption Blocked . | . . . . Overload Shots . | . . . . Overflow Damage 37 | . 37 . . Projectiles . | . . . . Explosions 37 | . 37 . . Melee . | . . . . Knockbacks . | . . . . Impact . | . . . . Kinetic . | . . . . Secondary . | . . . . Self-Inflicted Damage 85 | . 73 5 7 Shots 3 | . 3 . . Rammed 26 | . 1 2 23 Targets Rammed 27 | . 1 2 24 Kicked . | . . . . Crushed 1 | . . . 1 Highest Temperature 516 | . 516 . 501 Average Temperature 203 | . 246 . 171 Received Heat Transfer 1545 | . 540 63 942 Effects 30 | . 19 . 11 Shutdowns 6 | . 4 . 2 Energy Bleed 5 | . 3 . 2 Interference 3 | . . . 3 Matter Decay 1 | . . . 1 Short Circuit 3 | . 2 . 1 Damage (minor) 6 | . 5 . 1 Damage (major) 5 | . 5 . . Damage (core) 1 | . . . 1 Siege Activations . | . . . . Martial Activations . | . . . . Shielding Activations . | . . . . Robots Disrupted . | . . . . Combat Hostiles . | . . . . Robots Corrupted . | . . . . Combat Hostiles . | . . . . Parts Fried . | . . . . Impact Corruptions . | . . . . Robots Melted 2 | . 2 . . Combat Hostiles 2 | . 2 . . Parts Melted 5 | . 4 . 1 Heat Transferred 2319 | . 1616 . 703 Parts Sabotaged . | . . . . Parts Stolen . | . . . . Parts Stripped . | . . . . Power Chain Reactions . | . . . . Alert | -11 -10 -9 -8 ------- Run | Yrd Mat Mat Mat Maximum Alert Level . | . . . . Low Security (%) 100 | 100 100 100 100 Level 1 . | . . . . Level 2 . | . . . . Level 3 . | . . . . Level 4 . | . . . . Level 5 . | . . . . High Security . | . . . . Max Security . | . . . . Peak Influence 170 | . 170 51 88 Initial 51 | . . 51 8 Average 39 | . 69 23 28 Influence Increases 759 | . 383 30 346 Destroy 0b10 Robot/C 440 | . 200 . 240 Destroy 0b10 Robot/NC 20 | . 20 . . Destroy Leader 102 | . 42 . 60 Disable Machine 30 | . 30 . . Destroy Structure 47 | . 46 . 1 Partial Spotted 15 | . . . 15 Lose Combat Pursuer 105 | . 45 30 30 Influence Decreases 739 | . 260 133 346 Entered New Map 84 | . . 72 12 Time Decay 484 | . 190 60 234 Lost Part 171 | . 70 1 100 Squads Dispatched 5 | . 2 . 3 Investigation . | . . . . Extermination . | . . . . Reinforcement 3 | . 2 . 1 Assault . | . . . . Garrison 2 | . . . 2 Intercept . | . . . . Searches Triggered . | . . . . Construction Impeded . | . . . . Haulers Reinforced . | . . . . Active Scanning Responses . | . . . . Cargo Convoy Interrupts . | . . . . Stealth | -11 -10 -9 -8 --------- Run | Yrd Mat Mat Mat Distress Signals 3 | . 1 1 1 Communications Jammed . | . . . . Distress Signals . | . . . . Times Spotted 63 | . 25 15 23 Peak Tracking Total 11 | . 7 11 4 Tactical Retreats 5 | . 3 1 1 Traps | -11 -10 -9 -8 ------- Run | Yrd Mat Mat Mat Traps Triggered . | . . . . Indirectly . | . . . . Trap Hack Attempts . | . . . . Triggered . | . . . . Disarmed . | . . . . Reprogrammed . | . . . . Reused . | . . . . Traps Extracted . | . . . . Installed . | . . . . Triggered . | . . . . Machines | -11 -10 -9 -8 ---------- Run | Yrd Mat Mat Mat Machines Disabled 3 | . 3 . . Max in Single Turn 1 | . 1 . . Garrison Access 1 | . . . 1 Machines Repaired . | . . . . Machines Dismantled . | . . . . Machines Sabotaged . | . . . . Overloaded Fab Kills . | . . . . Hacking | -11 -10 -9 -8 --------- Run | Yrd Mat Mat Mat Machines Accessed 1 | . . . 1 Terminals . | . . . . Fabricators . | . . . . Repair Stations . | . . . . Recycling Units . | . . . . Scanalyzers . | . . . . Garrison Access 1 | . . . 1 Total Hacks 1 | . . . 1 Successful 1 | . . . 1 Failed . | . . . . Catastrophic . | . . . . Database Lockouts . | . . . . Manual . | . . . . Terminals . | . . . . Fabricators . | . . . . Repair Stations . | . . . . Recycling Units . | . . . . Scanalyzers . | . . . . Garrison Access 1 | . . . 1 Terminal Hacks . | . . . . Fabricator Hacks . | . . . . Repair Station Hacks . | . . . . Recycling Unit Hacks . | . . . . Scanalyzer . | . . . . Garrison Access Hacks 1 | . . . 1 Seal Access 1 | . . . 1 Unauthorized Hacks . | . . . . Terminals . | . . . . Fabricators . | . . . . Repair Stations . | . . . . Recycling Units . | . . . . Scanalyzers . | . . . . Garrison Access . | . . . . Data Cores Recovered . | . . . . Used . | . . . . Hacking Detections . | . . . . Full Trace Events . | . . . . Feedback Events . | . . . . Feedback Blocked . | . . . . Robot Schematics Acquired . | . . . . Robots Built . | . . . . Authchips . | . . . . Time . | . . . . Total Robot Build Rating . | . . . . Part Schematics Acquired . | . . . . Parts Built . | . . . . Authchips . | . . . . Time . | . . . . Total Part Build Rating . | . . . . Part Studies Acquired . | . . . . Parts Repaired . | . . . . Time . | . . . . Parts Recycled . | . . . . Recycled Matter . | . . . . Retrieved Matter . | . . . . Retrieved Components . | . . . . Parts Scanalyzed . | . . . . Part Schematics Acquired . | . . . . Parts Damaged . | . . . . Bothacking | -11 -10 -9 -8 ------------ Run | Yrd Mat Mat Mat Used RIF Installer . | . . . . Robots Hacked . | . . . . Non-combat . | . . . . Combat . | . . . . Robot Hacks Applied . | . . . . Relay Couplers Released . | . . . . Fabnet Peak Effective % . | . . . . Robots Rewired . | . . . . Allies Hacked . | . . . . Hacks Repelled . | . . . . Allies | -11 -10 -9 -8 -------- Run | Yrd Mat Mat Mat Total Allies . | . . . . Largest Group . | . . . . Highest-Rated Group . | . . . . Highest-Rated Ally . | . . . . Total Orders . | . . . . Ally Attacks . | . . . . Total Damage . | . . . . Kills . | . . . . Allies Corrupted . | . . . . Allies Melted . | . . . . Intel | -11 -10 -9 -8 ------- Run | Yrd Mat Mat Mat Active Infowar (turns) 422 | . . . 422 Optics 364 | . . . 364 Sensors 58 | . . . 58 Robot Analysis Total . | . . . . Derelict Logs Recovered . | . . . . Drone Launches . | . . . . Drone Recoveries . | . . . . Exploration | -11 -10 -9 -8 ------------- Run | Yrd Mat Mat Mat Turns Passed 1608 | 59 497 149 903 Spaces Moved 1042 | 54 292 191 505 Core 329 | 25 88 174 42 Treads 150 | . 107 . 43 Legs 126 | 29 97 . . Wheels 93 | . . 17 76 Hover 273 | . . . 273 Flight 71 | . . . 71 Fastest Speed 50 | 50 50 50 50 Average Speed 109 | 87 119 60 124 Slowest Speed 250 | 120 200 200 250 Overloaded Moves . | . . . . Propulsion Burnouts . | . . . . Robots Hopped . | . . . . Potential Cave-ins . | . . . . Cave-ins Triggered . | . . . . Exploration Rate (%) 31 | 4 46 30 44 Regions Visited 3 Branch Regions . Pre-discovered Areas . | . . . . Known Exits Taken . | . . . . Unknown Exits Taken 3 | 1 1 1 . Scrap Searched . | . . . . Spaces Dug . | . . . . Terrain Destroyed 48 | . 48 . . Melee . | . . . . Projectile . | . . . . AOE 48 | . 48 . . Terrain Rammed . | . . . . Walls Destroyed . | . . . . Machines Disabled . | . . . . Actions | -11 -10 -9 -8 --------- Run | Yrd Mat Mat Mat Total 1352 | 65 374 225 688 Wait 62 | . 18 24 20 Move 1039 | 53 291 190 505 Hop . | . . . . Pick Up 44 | 6 8 3 27 Fast Attach . | . . . . Attach 41 | 6 8 3 24 Detach 2 | . . . 2 Swap 8 | . . . 8 Drop 14 | . 6 3 5 Fire 115 | . 42 . 73 Melee . | . . . . Ram 12 | . . 2 10 Kick . | . . . . Crush 15 | . 1 . 14 Escape Stasis . | . . . . Rewire . | . . . . Trap . | . . . . Miscellaneous . | . . . . Route ------- -11/Scrapyard -10/Materials (discovered 3 exits: *Mat x2 / [*Min]) -9/Materials -8/Materials (discovered 1 exit: [*Fac]) History --------- Turn | Location | Event 4 | -11/Scrapyard | Discovered new exit (range 16) 60 | -11/Scrapyard | Entered Materials 122 | -10/Materials | Discovered new exit (range 11) 310 | -10/Materials | Build established: Mutant 440 | -10/Materials | Discovered new exit (range 7) 471 | -10/Materials | Core integrity fell below 50% 504 | -10/Materials | Discovered new exit (range 16) 516 | -10/Materials | Lost 3 parts (1p2w) 557 | -10/Materials | Entered another Materials area 557 | -9/Materials | Evolved 2 slots: Propulsion x1, Utility x1 700 | -9/Materials | Core integrity fell below 50% 701 | -9/Materials | Discovered new exit (range 11) 706 | -9/Materials | Core integrity fell below 20% 706 | -9/Materials | Entered another Materials area 706 | -8/Materials | Evolved 2 slots: Power x1, Utility x1 956 | -8/Materials | Discovered new exit (range 4) 1219 | -8/Materials | Garrison activated, responded to threat 1452 | -8/Materials | Core integrity fell below 50% 1480 | -8/Materials | Core integrity fell below 20% 1508 | -8/Materials | Lost 9 parts (1p3n3u2w) 1609 | -8/Materials | Destroyed by Y-45 Defender with Beam Rifle Last Messages --------------- 01475_ Imp. Sensor Array destroyed. 01477_ Imp. Hover Unit destroyed. 01491_ Acquired Arm. Treads. 01493_ G-50 Soldier destroyed. 01501_ Acquired Lgt. Angular Momentum Engine. 01516_ Nuclear Core destroyed. 01516_ Acquired 54 matter. 01530_ Dropped Minigun. 01541_ Acquired 40 matter. 01544_ Acquired 73 matter. 01559_ Acquired Reflective Plating. 01562_ Critical hit (Burn: +37). 01570_ Acquired Reflective Plating. 01577_ Lgt. Angular Momentum Engine destroyed. 01580_ Critical hit (Burn: +37). 01584_ Slammed into G-47 Trooper. 01598_ Critical hit (Burn: +37). 01599_ Slammed into G-47 Trooper. 01607_ Crushed G-47 Trooper. 01607_ G-47 Trooper destroyed. Map ----- +----------------------------------------------------+ | | | | | | | | | | | | | | | | | | | | | | | | | | | | | | | | | ????????????????????????????????????? | | ????????????????????????????????????? | | ????????????????????????????????????? | | ????????????????????????????????????? | | ????????????????????????????????????? | | ????????????????????????#######?????? | | ????????????????????????# !#?????? | | ????????????????????????# #?????? | | ?????????????????????#### #?????? | | ?????????????????????# #@ ! #?????? | | ?????????????????????# # !=#?????? | | ?????????????????????# /Y! #?????? | | ?????????????????????# # #?????? | | ????????????????????## ####k##?????? | | ????????????????????# ### ##?????? | | ????????????????????# #?????? | | ????????????????????# +?????? | | ????????????????????# #### #?????? | | ????????????????????#########+#?????? | | ????????????????????# = #?????? | | ????????????????????# #?????? | | ????????????????????# #?????? | | ????????????????????+ #?????? | | ????????????????????# #?????? | | ????????????????????# #?????? | | ????????????????????# #?????? | | ????????????????????# [#?????? | | ?????????????###########+####/#?????? | | ???????????? ^ ####### | | ???????????? # """ # | | ???????????? # """ # | | ??????????????############ # """ # | | ?????????????????????????# # # | | ?????????????????????????# + ! # | +----------------------------------------------------+ Best States ------------- Heat Dissipation 31 Energy Generation 27 Energy Capacity 380 Matter Stores 300 Matter Capacity 300 Sight Range 20 Robot Scan Range 15 Terrain Scan Density 10 Armor Coverage 300 Resistance: TH 10 Evasion (%) 55 Targeting Accuracy 8 Recoil Reduction 2 Particle Charging 15 Item Schematics ----------------- None Robot Schematics ------------------ None Fabricated ------------ Nothing Repaired ---------- Nothing Studied --------- None Alien Tech Used ----------------- None Achievements -------------- Throw Away The Key Well Done Challenges ------------ None Game ------ Seed JunkMetafiberDriveblaster Manual? 0 Play Time 00:20:03 Cumulative 27.4 hours Start 2025.11.30 @ 21:25:18 End 2025.11.30 @ 21:44:33 Sessions 1 Manual Loads 0 Difficulty Rogue Special Mode None Game No. 52 Rogue 52 Adventurer 0 Explorer 0 Win Type - Total 0 Types 0/0/0/0/0/0/0/0/0/0 Lore% 10 Gallery% 24 Achievement% 15 Wizard Run 0 Options --------- Layout 1 ASCII 0 Keyboard 0 Movement Numpad Keybinds 0 Fullscreen 1 Font 32/SmallcapsGlow Map View 50x40 Zoom Use 0% Tactical HUD 1 Map Filters NONE Filters NONE Steam 1 RUN: 2b1b7145-5efb-4b19-9c6b-38d79a7a0d6d